[Event "Early-Titled-Tuesday-Blitz-September-12-2023"]
[Site "Chess.com"]
[Date "2023.09.12"]
[Round "3"]
[White "DrDreBeats"]
[Black "EvgenyBurmakin"]
[Result "1/2-1/2"]
[WhiteElo "2538"]
[BlackElo "2288"]
[TimeControl "180+1"]
[EndTime "8:26:30 PDT"]
[Termination "Game drawn by repetition"]

1. e4 {[%clk 0:02:57.8]} 1... c5 {[%clk 0:02:59.7]} 2. Nf3 {[%clk 0:02:57.4]}
2... d6 {[%clk 0:02:59.7]} 3. d4 {[%clk 0:02:57.9]} 3... cxd4 {[%clk 0:03:00.6]}
4. Nxd4 {[%clk 0:02:58.5]} 4... Nf6 {[%clk 0:03:01.2]} 5. Nc3 {[%clk 0:02:58.9]}
5... e6 {[%clk 0:03:00.3]} 6. h3 {[%clk 0:02:58.4]} 6... Be7 {[%clk 0:03:00.4]}
7. Be2 {[%clk 0:02:57.9]} 7... Nc6 {[%clk 0:02:59.8]} 8. Nb3 {[%clk 0:02:57.2]}
8... O-O {[%clk 0:02:58.1]} 9. O-O {[%clk 0:02:57.2]} 9... a6 {[%clk 0:02:52.4]}
10. f4 {[%clk 0:02:55.5]} 10... b5 {[%clk 0:02:37.8]} 11. Bf3 {[%clk 0:02:55.5]}
11... Bb7 {[%clk 0:02:37.6]} 12. Be3 {[%clk 0:02:54.9]} 12... Qc7 {[%clk
0:02:31.4]} 13. a3 {[%clk 0:02:51]} 13... Rac8 {[%clk 0:02:18.9]} 14. Qe1 {[%clk
0:02:45.5]} 14... Rfe8 {[%clk 0:02:14]} 15. Rd1 {[%clk 0:02:44.7]} 15... e5
{[%clk 0:01:42.3]} 16. f5 {[%clk 0:02:43.6]} 16... Na5 {[%clk 0:01:40.9]} 17.
Nxa5 {[%clk 0:02:40.6]} 17... Qxa5 {[%clk 0:01:41.8]} 18. g4 {[%clk 0:02:41.2]}
18... b4 {[%clk 0:01:20.8]} 19. axb4 {[%clk 0:02:40.8]} 19... Qxb4 {[%clk
0:01:21.7]} 20. Nd5 {[%clk 0:02:32.7]} 20... Nxd5 {[%clk 0:01:19.5]} 21. exd5
{[%clk 0:02:32.8]} 21... e4 {[%clk 0:01:08.5]} 22. c3 {[%clk 0:02:29.5]} 22...
Qxb2 {[%clk 0:01:03.5]} 23. Rb1 {[%clk 0:02:28.7]} 23... Qxc3 {[%clk 0:01:00.6]}
24. Qxc3 {[%clk 0:02:28.8]} 24... Rxc3 {[%clk 0:01:01.1]} 25. Rxb7 {[%clk
0:02:29.5]} 25... exf3 {[%clk 0:00:40.7]} 26. Bd4 {[%clk 0:02:29.7]} 26... Rd3
{[%clk 0:00:39.1]} 27. Re1 {[%clk 0:02:30.3]} 27... Rxd4 {[%clk 0:00:31.1]} 28.
Rexe7 {[%clk 0:02:30.1]} 28... Rf8 {[%clk 0:00:24.6]} 29. Kf2 {[%clk 0:02:30.4]}
29... Rxd5 {[%clk 0:00:21.9]} 30. Ra7 {[%clk 0:02:30.8]} 30... Ra5 {[%clk
0:00:20.5]} 31. Red7 {[%clk 0:02:30.6]} 31... d5 {[%clk 0:00:20]} 32. h4 {[%clk
0:02:30.9]} 32... g6 {[%clk 0:00:13.9]} 33. f6 {[%clk 0:02:29]} 33... h6 {[%clk
0:00:13.9]} 34. Kxf3 {[%clk 0:02:26.2]} 34... Ra3+ {[%clk 0:00:09.3]} 35. Kf4
{[%clk 0:02:25.6]} 35... Ra4+ {[%clk 0:00:09.9]} 36. Kf3 {[%clk 0:02:25.6]}
36... Ra3+ {[%clk 0:00:09]} 37. Kf2 {[%clk 0:02:23.5]} 37... Ra4 {[%clk
0:00:08.1]} 38. Kg3 {[%clk 0:02:14.5]} 38... Ra3+ {[%clk 0:00:07.2]} 39. Kf4
{[%clk 0:02:14.5]} 39... Ra4+ {[%clk 0:00:07.8]} 40. Kg3 {[%clk 0:02:14.4]}
40... Ra3+ {[%clk 0:00:08]} 41. Kg2 {[%clk 0:02:14.6]} 41... Ra4 {[%clk
0:00:08.1]} 42. Kh3 {[%clk 0:02:09.8]} 42... Ra3+ {[%clk 0:00:07.9]} 43. Kh2
{[%clk 0:02:10.2]} 43... Ra4 {[%clk 0:00:08.1]} 44. Kg3 {[%clk 0:02:02.8]}
1/2-1/2

[Event "Early-Titled-Tuesday-Blitz-September-12-2023"]
[Site "Chess.com"]
[Date "2023.09.12"]
[Round "3"]
[White "artin10862"]
[Black "MartinMatthiesen"]
[Result "1-0"]
[WhiteElo "2937"]
[BlackElo "2518"]
[TimeControl "180+1"]
[EndTime "8:26:34 PDT"]
[Termination "artin10862 won by resignation"]

1. e4 {[%clk 0:03:00.9]} 1... c6 {[%clk 0:03:00]} 2. d4 {[%clk 0:02:58.7]} 2...
d5 {[%clk 0:03:00.1]} 3. e5 {[%clk 0:02:59.3]} 3... Bf5 {[%clk 0:02:59.6]} 4.
Nf3 {[%clk 0:02:59.5]} 4... e6 {[%clk 0:02:59.6]} 5. Be2 {[%clk 0:03:00.1]} 5...
c5 {[%clk 0:02:59.9]} 6. Be3 {[%clk 0:02:55.7]} 6... cxd4 {[%clk 0:02:53.1]} 7.
Nxd4 {[%clk 0:02:55.7]} 7... Ne7 {[%clk 0:02:53.7]} 8. c4 {[%clk 0:02:47.3]}
8... Nbc6 {[%clk 0:02:46.8]} 9. cxd5 {[%clk 0:02:46.5]} 9... Nxd4 {[%clk
0:02:46.1]} 10. Bxd4 {[%clk 0:02:20]} 10... Qxd5 {[%clk 0:02:43.6]} 11. Nc3
{[%clk 0:02:20.3]} 11... Qd7 {[%clk 0:02:31.6]} 12. Bb5 {[%clk 0:02:12.2]} 12...
Nc6 {[%clk 0:02:30.6]} 13. Qf3 {[%clk 0:02:12.3]} 13... Be7 {[%clk 0:02:09.3]}
14. O-O {[%clk 0:02:06.6]} 14... O-O {[%clk 0:02:07.7]} 15. Bxc6 {[%clk
0:02:03.4]} 15... bxc6 {[%clk 0:02:05.2]} 16. Rfd1 {[%clk 0:02:00.2]} 16... Qc7
{[%clk 0:01:59.2]} 17. Rac1 {[%clk 0:01:59.1]} 17... Rfd8 {[%clk 0:01:45.7]} 18.
Na4 {[%clk 0:01:53.2]} 18... Rd5 {[%clk 0:01:35.2]} 19. Nc3 {[%clk 0:01:52.6]}
19... Rdd8 {[%clk 0:01:28.5]} 20. Nb5 {[%clk 0:01:51]} 20... Qa5 {[%clk
0:01:16]} 21. Nd6 {[%clk 0:01:34.7]} 21... Bxd6 {[%clk 0:00:50.7]} 22. exd6
{[%clk 0:01:35.6]} 22... Qd5 {[%clk 0:00:50.8]} 23. Qg3 {[%clk 0:01:27.9]} 23...
Bg6 {[%clk 0:00:14.6]} 24. Bxg7 {[%clk 0:01:27]} 24... Qh5 {[%clk 0:00:12.4]}
25. Bc3 {[%clk 0:01:22.2]} 25... c5 {[%clk 0:00:10.7]} 26. d7 {[%clk 0:01:19.6]}
26... Rab8 {[%clk 0:00:09.2]} 27. Qxb8 {[%clk 0:01:17.9]} 1-0

[Event "Early-Titled-Tuesday-Blitz-September-12-2023"]
[Site "Chess.com"]
[Date "2023.09.12"]
[Round "3"]
[White "GMJustin"]
[Black "McCarthyStone"]
[Result "0-1"]
[WhiteElo "2260"]
[BlackElo "2457"]
[TimeControl "180+1"]
[EndTime "8:26:37 PDT"]
[Termination "McCarthyStone won on time"]

1. e4 {[%clk 0:02:44.8]} 1... e5 {[%clk 0:02:58.9]} 2. Nf3 {[%clk 0:02:40.7]}
2... d6 {[%clk 0:02:59.1]} 3. d4 {[%clk 0:02:33.6]} 3... exd4 {[%clk 0:03:00]}
4. Qxd4 {[%clk 0:02:27.3]} 4... Bd7 {[%clk 0:02:59.4]} 5. c4 {[%clk 0:02:20.6]}
5... Nf6 {[%clk 0:02:58.2]} 6. Nc3 {[%clk 0:02:18.2]} 6... Nc6 {[%clk
0:02:57.9]} 7. Qd2 {[%clk 0:02:12.5]} 7... g6 {[%clk 0:02:57.3]} 8. b3 {[%clk
0:02:04.9]} 8... Bg7 {[%clk 0:02:57]} 9. Bb2 {[%clk 0:02:04.5]} 9... O-O {[%clk
0:02:57.9]} 10. Bd3 {[%clk 0:01:56.3]} 10... Re8 {[%clk 0:02:56.9]} 11. O-O
{[%clk 0:01:54.1]} 11... Bg4 {[%clk 0:02:45.5]} 12. Ne1 {[%clk 0:01:43.6]} 12...
Nd7 {[%clk 0:02:31.6]} 13. f3 {[%clk 0:01:35.8]} 13... Be6 {[%clk 0:02:30.6]}
14. Nc2 {[%clk 0:01:26.1]} 14... Qh4 {[%clk 0:02:29.4]} 15. Ne3 {[%clk
0:01:12.4]} 15... Nc5 {[%clk 0:02:12.3]} 16. Bc2 {[%clk 0:00:41.3]} 16... Nd4
{[%clk 0:01:57.2]} 17. Rad1 {[%clk 0:00:35]} 17... Be5 {[%clk 0:01:51.8]} 18. g3
{[%clk 0:00:29.6]} 18... Qh5 {[%clk 0:01:48.6]} 19. f4 {[%clk 0:00:23.5]} 19...
Bg7 {[%clk 0:01:38.1]} 20. f5 {[%clk 0:00:14.4]} 20... Nf3+ {[%clk 0:01:38]} 21.
Rxf3 {[%clk 0:00:12.5]} 21... Qxf3 {[%clk 0:01:38.9]} 22. Rf1 {[%clk 0:00:07.3]}
22... Qh5 {[%clk 0:01:35]} 23. fxe6 {[%clk 0:00:06.6]} 23... Nxe6 {[%clk
0:01:33.5]} 24. Bb1 {[%clk 0:00:05]} 24... Qc5 {[%clk 0:01:32.1]} 25. Nd5 {[%clk
0:00:03.2]} 25... Ng5 {[%clk 0:01:15]} 26. Kh1 {[%clk 0:00:01.2]} 26... Nxe4
{[%clk 0:01:14.4]} 0-1

[Event "Early-Titled-Tuesday-Blitz-September-12-2023"]
[Site "Chess.com"]
[Date "2023.09.12"]
[Round "3"]
[White "WinstonSilvakov"]
[Black "wild3000"]
[Result "0-1"]
[WhiteElo "2156"]
[BlackElo "2419"]
[TimeControl "180+1"]
[EndTime "8:26:38 PDT"]
[Termination "wild3000 won by resignation"]

1. d3 {[%clk 0:02:36.3]} 1... d5 {[%clk 0:02:48.2]} 2. g3 {[%clk 0:02:37.2]}
2... h5 {[%clk 0:02:47.9]} 3. Bg2 {[%clk 0:02:38.1]} 3... h4 {[%clk 0:02:48]} 4.
b3 {[%clk 0:02:36.3]} 4... h3 {[%clk 0:02:46.9]} 5. Bf3 {[%clk 0:02:35.3]} 5...
c6 {[%clk 0:02:41.9]} 6. Bb2 {[%clk 0:02:35.8]} 6... Nf6 {[%clk 0:02:41.3]} 7.
e4 {[%clk 0:02:32.8]} 7... dxe4 {[%clk 0:02:39]} 8. dxe4 {[%clk 0:02:32.6]} 8...
Qxd1+ {[%clk 0:02:38.4]} 9. Kxd1 {[%clk 0:02:33.3]} 9... Nbd7 {[%clk 0:02:33.2]}
10. Ne2 {[%clk 0:02:32.1]} 10... Ne5 {[%clk 0:02:32.2]} 11. Nd4 {[%clk
0:02:28.8]} 11... c5 {[%clk 0:02:26.8]} 12. Nb5 {[%clk 0:02:25.4]} 12... Nxf3
{[%clk 0:02:25.8]} 13. Nc7+ {[%clk 0:02:25.8]} 13... Kd8 {[%clk 0:02:24.7]} 14.
Nxa8 {[%clk 0:02:26.7]} 14... Bg4 {[%clk 0:02:24]} 15. Kc1 {[%clk 0:02:25.6]}
15... Nxe4 {[%clk 0:02:17.2]} 16. Nc3 {[%clk 0:02:16.5]} 16... Nxc3 {[%clk
0:02:07.3]} 17. Bxc3 {[%clk 0:02:17.4]} 17... e5 {[%clk 0:02:02.5]} 18. Kb2
{[%clk 0:02:15.6]} 18... Kc8 {[%clk 0:01:54.5]} 19. Rad1 {[%clk 0:02:10.3]}
19... Be7 {[%clk 0:01:54.4]} 20. Rd5 {[%clk 0:01:52.4]} 20... f6 {[%clk
0:01:50.9]} 21. Rhd1 {[%clk 0:01:49.9]} 21... Rd8 {[%clk 0:01:41.6]} 22. Ba5
{[%clk 0:01:46.2]} 22... Rxd5 {[%clk 0:01:40.9]} 23. Rxd5 {[%clk 0:01:45.6]}
23... b6 {[%clk 0:01:41.4]} 24. Bxb6 {[%clk 0:01:40.7]} 24... axb6 {[%clk
0:01:40.6]} 25. Nxb6+ {[%clk 0:01:41.6]} 25... Kc7 {[%clk 0:01:41.2]} 26. Nc4
{[%clk 0:01:39]} 26... Nxh2 {[%clk 0:01:36.4]} 27. a4 {[%clk 0:01:20]} 27... Nf3
{[%clk 0:01:35.3]} 28. Rd1 {[%clk 0:01:18.3]} 28... h2 {[%clk 0:01:32.6]} 29.
Rh1 {[%clk 0:01:17.7]} 29... Bh3 {[%clk 0:01:24.1]} 30. Ne3 {[%clk 0:01:12.2]}
30... f5 {[%clk 0:01:24.2]} 31. Nd5+ {[%clk 0:01:01.6]} 31... Kd6 {[%clk
0:01:24]} 32. Rd1 {[%clk 0:00:56.9]} 32... Nd4 {[%clk 0:01:16.3]} 33. Ne3 {[%clk
0:00:54.5]} 33... f4 {[%clk 0:01:02.4]} 34. gxf4 {[%clk 0:00:53.2]} 34... exf4
{[%clk 0:01:03.3]} 35. Rh1 {[%clk 0:00:52.3]} 35... fxe3 {[%clk 0:01:00.8]} 36.
fxe3 {[%clk 0:00:52]} 36... Nf3 {[%clk 0:01:00.6]} 0-1

[Event "Early-Titled-Tuesday-Blitz-September-12-2023"]
[Site "Chess.com"]
[Date "2023.09.12"]
[Round "3"]
[White "tptagain"]
[Black "Zohid6"]
[Result "0-1"]
[WhiteElo "2926"]
[BlackElo "2723"]
[TimeControl "180+1"]
[EndTime "8:26:41 PDT"]
[Termination "Zohid6 won by resignation"]

1. Nf3 {[%clk 0:03:00.9]} 1... Nf6 {[%clk 0:02:59.4]} 2. b3 {[%clk 0:03:01.3]}
2... d5 {[%clk 0:02:57.5]} 3. Bb2 {[%clk 0:03:00.9]} 3... c5 {[%clk 0:02:57.7]}
4. e3 {[%clk 0:03:00.9]} 4... Nc6 {[%clk 0:02:58.1]} 5. Bb5 {[%clk 0:03:01]}
5... Bd7 {[%clk 0:02:55.5]} 6. O-O {[%clk 0:03:01.1]} 6... e6 {[%clk 0:02:55]}
7. c4 {[%clk 0:03:01]} 7... Bd6 {[%clk 0:02:54.7]} 8. cxd5 {[%clk 0:02:58.4]}
8... exd5 {[%clk 0:02:53.5]} 9. Bxf6 {[%clk 0:02:50.2]} 9... Qxf6 {[%clk
0:02:51.8]} 10. Nc3 {[%clk 0:02:51.1]} 10... Be6 {[%clk 0:02:38.3]} 11. e4
{[%clk 0:02:48.9]} 11... d4 {[%clk 0:02:21.4]} 12. Nd5 {[%clk 0:02:23.8]} 12...
Qg6 {[%clk 0:02:18.9]} 13. d3 {[%clk 0:01:36.4]} 13... O-O {[%clk 0:02:18.4]}
14. Bc4 {[%clk 0:01:31.9]} 14... Qh6 {[%clk 0:02:10.1]} 15. Qc1 {[%clk
0:01:23.1]} 15... Qh5 {[%clk 0:02:04.8]} 16. Nf4 {[%clk 0:01:19.4]} 16... Qg4
{[%clk 0:01:55.4]} 17. Nxe6 {[%clk 0:01:17.8]} 17... fxe6 {[%clk 0:01:56.3]} 18.
h3 {[%clk 0:01:16.6]} 18... Qg6 {[%clk 0:01:53.8]} 19. Qg5 {[%clk 0:01:06.3]}
19... Qf7 {[%clk 0:01:53.4]} 20. Qg4 {[%clk 0:01:01.6]} 20... Kh8 {[%clk
0:01:32.1]} 21. Bxe6 {[%clk 0:01:01]} 21... Qf6 {[%clk 0:01:29]} 22. Bd5 {[%clk
0:00:56.6]} 22... Nb4 {[%clk 0:01:28.4]} 23. Bc4 {[%clk 0:00:56.7]} 23... Bc7
{[%clk 0:01:24.5]} 24. a3 {[%clk 0:00:49.6]} 24... Nc6 {[%clk 0:01:22.7]} 25.
Bd5 {[%clk 0:00:48.2]} 25... Rab8 {[%clk 0:01:23.2]} 26. a4 {[%clk 0:00:40.7]}
26... Nb4 {[%clk 0:01:22.6]} 27. Bc4 {[%clk 0:00:41.2]} 27... a6 {[%clk
0:01:22.9]} 28. a5 {[%clk 0:00:41.5]} 28... Nc6 {[%clk 0:01:22.8]} 29. Rfe1
{[%clk 0:00:27.4]} 29... Ne5 {[%clk 0:01:19.6]} 30. Nxe5 {[%clk 0:00:27.2]}
30... Qxf2+ {[%clk 0:01:19.1]} 31. Kh1 {[%clk 0:00:25.5]} 31... Bxe5 {[%clk
0:01:20]} 32. Re2 {[%clk 0:00:19.6]} 32... Qf1+ {[%clk 0:01:19.8]} 0-1

[Event "Early-Titled-Tuesday-Blitz-September-12-2023"]
[Site "Chess.com"]
[Date "2023.09.12"]
[Round "3"]
[White "PLAYER_2006_M"]
[Black "Frolyanov_D"]
[Result "1-0"]
[WhiteElo "2865"]
[BlackElo "2640"]
[TimeControl "180+1"]
[EndTime "8:26:43 PDT"]
[Termination "PLAYER_2006_M won by resignation"]

1. d4 {[%clk 0:03:00.9]} 1... d5 {[%clk 0:02:59.5]} 2. Nc3 {[%clk 0:03:01.5]}
2... Nf6 {[%clk 0:02:59.1]} 3. Bf4 {[%clk 0:03:01.8]} 3... a6 {[%clk 0:02:58.6]}
4. e3 {[%clk 0:03:02.1]} 4... Nc6 {[%clk 0:02:51.1]} 5. h3 {[%clk 0:02:46.9]}
5... g6 {[%clk 0:02:49.1]} 6. Nf3 {[%clk 0:02:45.1]} 6... Bg7 {[%clk 0:02:48.9]}
7. Bd3 {[%clk 0:02:39.4]} 7... Nb4 {[%clk 0:02:46.5]} 8. O-O {[%clk 0:02:39.7]}
8... Nxd3 {[%clk 0:02:46]} 9. cxd3 {[%clk 0:02:40.6]} 9... O-O {[%clk
0:02:44.4]} 10. Rc1 {[%clk 0:02:41.1]} 10... c6 {[%clk 0:02:38.7]} 11. Qb3
{[%clk 0:02:39.5]} 11... Nd7 {[%clk 0:02:32.3]} 12. Rc2 {[%clk 0:02:26.7]} 12...
Re8 {[%clk 0:02:27.9]} 13. Nxd5 {[%clk 0:02:25.8]} 13... e5 {[%clk 0:02:27.9]}
14. Bg5 {[%clk 0:02:22.9]} 14... Qa5 {[%clk 0:02:15.5]} 15. Ne7+ {[%clk
0:02:20.8]} 15... Kf8 {[%clk 0:02:00]} 16. Nxc8 {[%clk 0:02:16.5]} 16... Raxc8
{[%clk 0:02:00.9]} 17. dxe5 {[%clk 0:02:02.4]} 17... Nxe5 {[%clk 0:02:00.3]} 18.
Nxe5 {[%clk 0:02:01.4]} 18... Qxe5 {[%clk 0:01:56]} 19. Bf4 {[%clk 0:01:59.3]}
19... Qb5 {[%clk 0:01:55.8]} 20. Qxb5 {[%clk 0:01:37.7]} 20... axb5 {[%clk
0:01:56.7]} 21. d4 {[%clk 0:01:38.6]} 21... Rcd8 {[%clk 0:01:54.5]} 22. g4
{[%clk 0:01:35]} 22... Bf6 {[%clk 0:01:52.5]} 23. Kg2 {[%clk 0:01:33.5]} 23...
Be7 {[%clk 0:01:48.7]} 24. Rd1 {[%clk 0:01:17.6]} 24... Rd5 {[%clk 0:01:48.4]}
25. e4 {[%clk 0:01:15.3]} 25... Rd7 {[%clk 0:01:46.2]} 26. d5 {[%clk 0:01:02.5]}
26... Red8 {[%clk 0:01:42.2]} 27. dxc6 {[%clk 0:00:54.8]} 27... Rxd1 {[%clk
0:01:37.6]} 28. cxb7 {[%clk 0:00:52.5]} 28... R1d7 {[%clk 0:01:19.6]} 29. b8=Q
{[%clk 0:00:48.9]} 29... Rxb8 {[%clk 0:01:19.2]} 30. Bxb8 {[%clk 0:00:49.8]}
30... Bf6 {[%clk 0:01:12.7]} 31. e5 {[%clk 0:00:44]} 31... Bg5 {[%clk
0:01:11.6]} 32. Bd6+ {[%clk 0:00:32.4]} 32... Kg7 {[%clk 0:01:11.2]} 33. Rc7
{[%clk 0:00:27.8]} 1-0

[Event "Early-Titled-Tuesday-Blitz-September-12-2023"]
[Site "Chess.com"]
[Date "2023.09.12"]
[Round "3"]
[White "Witty_Alien"]
[Black "noblerone"]
[Result "0-1"]
[WhiteElo "2159"]
[BlackElo "2539"]
[TimeControl "180+1"]
[EndTime "8:26:47 PDT"]
[Termination "noblerone won by resignation"]

1. e4 {[%clk 0:03:00.9]} 1... d5 {[%clk 0:02:55.7]} 2. exd5 {[%clk 0:03:01.3]}
2... Qxd5 {[%clk 0:02:56.6]} 3. Nc3 {[%clk 0:03:01.9]} 3... Qd8 {[%clk
0:02:55.6]} 4. Bc4 {[%clk 0:03:01.9]} 4... Nf6 {[%clk 0:02:55.5]} 5. Nf3 {[%clk
0:03:02.4]} 5... a6 {[%clk 0:02:55.8]} 6. d4 {[%clk 0:02:57.7]} 6... b5 {[%clk
0:02:55.2]} 7. Be2 {[%clk 0:02:58.2]} 7... Bb7 {[%clk 0:02:43.5]} 8. Ne5 {[%clk
0:02:57.6]} 8... Nbd7 {[%clk 0:02:36.8]} 9. Bf3 {[%clk 0:02:54.4]} 9... Qc8
{[%clk 0:02:17.8]} 10. Nc6 {[%clk 0:02:23.9]} 10... e6 {[%clk 0:02:11.8]} 11. d5
{[%clk 0:02:17.9]} 11... Bxc6 {[%clk 0:01:46.7]} 12. d6 {[%clk 0:02:17.7]} 12...
Bxf3 {[%clk 0:01:43.7]} 13. Qxf3 {[%clk 0:01:23.5]} 13... cxd6 {[%clk
0:01:39.4]} 14. Bg5 {[%clk 0:01:23.4]} 14... Be7 {[%clk 0:01:37.8]} 15. O-O-O
{[%clk 0:01:23.9]} 15... d5 {[%clk 0:01:35.1]} 16. Nxd5 {[%clk 0:01:14.8]} 16...
exd5 {[%clk 0:01:22.7]} 17. Rhe1 {[%clk 0:01:14]} 17... Qc5 {[%clk 0:01:19.2]}
18. Rxd5 {[%clk 0:01:06.6]} 18... Qxd5 {[%clk 0:00:35.5]} 19. Rxe7+ {[%clk
0:01:05.9]} 19... Kf8 {[%clk 0:00:35.3]} 20. Qxd5 {[%clk 0:01:04.6]} 20... Nxd5
{[%clk 0:00:35.6]} 21. Rxd7 {[%clk 0:01:05.2]} 21... Nf6 {[%clk 0:00:33.2]} 22.
Rc7 {[%clk 0:00:55.8]} 22... h6 {[%clk 0:00:32]} 23. Be3 {[%clk 0:00:55.7]}
23... Kg8 {[%clk 0:00:29.4]} 24. Bd4 {[%clk 0:00:56]} 24... Nd5 {[%clk
0:00:28.7]} 25. Rd7 {[%clk 0:00:55.9]} 25... Nf4 {[%clk 0:00:29]} 26. Kd2 {[%clk
0:00:54.1]} 26... Ne6 {[%clk 0:00:28.6]} 27. Be5 {[%clk 0:00:54.3]} 27... Rd8
{[%clk 0:00:28.7]} 28. Rxd8+ {[%clk 0:00:51.1]} 28... Nxd8 {[%clk 0:00:29.6]}
29. Kc3 {[%clk 0:00:52]} 29... Nc6 {[%clk 0:00:29]} 30. Bd6 {[%clk 0:00:52.4]}
30... f6 {[%clk 0:00:29.1]} 31. a4 {[%clk 0:00:50.9]} 31... Kf7 {[%clk
0:00:28.9]} 32. axb5 {[%clk 0:00:51.3]} 32... axb5 {[%clk 0:00:29.8]} 0-1

[Event "Early-Titled-Tuesday-Blitz-September-12-2023"]
[Site "Chess.com"]
[Date "2023.09.12"]
[Round "3"]
[White "farzadbfd"]
[Black "bardiya_Daneshvar"]
[Result "0-1"]
[WhiteElo "2703"]
[BlackElo "2933"]
[TimeControl "180+1"]
[EndTime "8:26:48 PDT"]
[Termination "bardiya_Daneshvar won by resignation"]

1. d4 {[%clk 0:03:00.9]} 1... c6 {[%clk 0:02:58.6]} 2. Nf3 {[%clk 0:03:00.9]}
2... Na6 {[%clk 0:02:59.5]} 3. Bf4 {[%clk 0:02:43.7]} 3... Nc7 {[%clk
0:03:00.4]} 4. e3 {[%clk 0:02:44]} 4... g6 {[%clk 0:02:59.9]} 5. c4 {[%clk
0:02:42.8]} 5... Bg7 {[%clk 0:02:59.3]} 6. Nc3 {[%clk 0:02:43.4]} 6... d6 {[%clk
0:02:59.7]} 7. h3 {[%clk 0:02:43.3]} 7... Nf6 {[%clk 0:02:57.8]} 8. Be2 {[%clk
0:02:43.4]} 8... O-O {[%clk 0:02:58.3]} 9. O-O {[%clk 0:02:43.8]} 9... Ne6
{[%clk 0:02:57.5]} 10. Bh2 {[%clk 0:02:43.3]} 10... c5 {[%clk 0:02:57.9]} 11.
Qd2 {[%clk 0:02:38.9]} 11... cxd4 {[%clk 0:02:56]} 12. Nxd4 {[%clk 0:02:37.4]}
12... Bd7 {[%clk 0:02:52.4]} 13. Bf3 {[%clk 0:02:35.4]} 13... Nxd4 {[%clk
0:02:48.3]} 14. Qxd4 {[%clk 0:02:35.3]} 14... Bc6 {[%clk 0:02:47.1]} 15. Be2
{[%clk 0:02:08.4]} 15... Ne4 {[%clk 0:02:40.7]} 16. Qd3 {[%clk 0:02:05.2]} 16...
Nxc3 {[%clk 0:02:39.2]} 17. bxc3 {[%clk 0:02:06.1]} 17... Qa5 {[%clk 0:02:38.4]}
18. Rfc1 {[%clk 0:02:01.4]} 18... Rac8 {[%clk 0:02:37.9]} 19. a4 {[%clk
0:01:56.7]} 19... b6 {[%clk 0:02:37]} 20. Ra3 {[%clk 0:01:55.4]} 20... Bb7
{[%clk 0:02:34.6]} 21. Rca1 {[%clk 0:01:53.9]} 21... Ba6 {[%clk 0:02:25.7]} 22.
Qe4 {[%clk 0:01:52.7]} 22... Rfe8 {[%clk 0:02:23.1]} 23. h4 {[%clk 0:01:47.4]}
23... Bxc3 {[%clk 0:02:14.9]} 24. Rd1 {[%clk 0:01:48.1]} 24... Qb4 {[%clk
0:02:12.1]} 25. Ra2 {[%clk 0:01:38.6]} 25... Bxc4 {[%clk 0:02:07.8]} 26. Bxc4
{[%clk 0:01:34.6]} 26... Qxc4 {[%clk 0:02:08.7]} 27. Qxc4 {[%clk 0:01:04]} 27...
Rxc4 {[%clk 0:02:09.6]} 28. h5 {[%clk 0:00:41.1]} 28... Rec8 {[%clk 0:02:05.5]}
29. hxg6 {[%clk 0:00:39.6]} 29... hxg6 {[%clk 0:02:06.4]} 30. Bf4 {[%clk
0:00:32.8]} 30... f6 {[%clk 0:02:01.6]} 31. Bg3 {[%clk 0:00:22.4]} 31... Kf7
{[%clk 0:01:58.9]} 32. f3 {[%clk 0:00:22.2]} 32... a5 {[%clk 0:01:54.9]} 33. Bf2
{[%clk 0:00:21.2]} 33... Bb4 {[%clk 0:01:54.7]} 34. e4 {[%clk 0:00:17]} 34...
Rc1 {[%clk 0:01:54.8]} 35. Rxc1 {[%clk 0:00:17]} 35... Rxc1+ {[%clk 0:01:55.7]}
36. Kh2 {[%clk 0:00:17.5]} 36... Bc5 {[%clk 0:01:54.6]} 37. Bg3 {[%clk
0:00:17.9]} 37... e5 {[%clk 0:01:50.6]} 38. Kh3 {[%clk 0:00:12.7]} 38... Rh1+
{[%clk 0:01:48.5]} 39. Kg4 {[%clk 0:00:12.9]} 39... Ke6 {[%clk 0:01:48.9]} 40.
Bh4 {[%clk 0:00:09]} 40... f5+ {[%clk 0:01:48.2]} 41. Kg3 {[%clk 0:00:07.1]}
41... Bb4 {[%clk 0:01:46.6]} 42. exf5+ {[%clk 0:00:01.9]} 42... gxf5 {[%clk
0:01:47.5]} 43. f4 {[%clk 0:00:02]} 43... Be1+ {[%clk 0:01:46.1]} 0-1

[Event "Early-Titled-Tuesday-Blitz-September-12-2023"]
[Site "Chess.com"]
[Date "2023.09.12"]
[Round "3"]
[White "chessfatbear"]
[Black "surrenderPLS"]
[Result "0-1"]
[WhiteElo "2818"]
[BlackElo "2534"]
[TimeControl "180+1"]
[EndTime "8:26:48 PDT"]
[Termination "surrenderPLS won on time"]

1. e4 {[%clk 0:03:00.9]} 1... c5 {[%clk 0:02:59.4]} 2. Nf3 {[%clk 0:03:01]} 2...
Nc6 {[%clk 0:02:59.6]} 3. d4 {[%clk 0:02:59]} 3... cxd4 {[%clk 0:03:00.5]} 4.
Nxd4 {[%clk 0:02:59.9]} 4... Nf6 {[%clk 0:03:01.2]} 5. Nc3 {[%clk 0:03:00.5]}
5... e5 {[%clk 0:03:01.9]} 6. Nf5 {[%clk 0:02:59.9]} 6... d5 {[%clk 0:03:00.9]}
7. exd5 {[%clk 0:03:00.8]} 7... Bxf5 {[%clk 0:03:00.7]} 8. dxc6 {[%clk
0:03:01.3]} 8... bxc6 {[%clk 0:02:58.4]} 9. Qf3 {[%clk 0:03:00.9]} 9... Qd7
{[%clk 0:02:56.3]} 10. Bg5 {[%clk 0:02:51.5]} 10... e4 {[%clk 0:02:55.1]} 11.
Qd1 {[%clk 0:02:39.3]} 11... Nd5 {[%clk 0:02:44.3]} 12. Nxd5 {[%clk 0:02:23.9]}
12... cxd5 {[%clk 0:02:43.1]} 13. Qd4 {[%clk 0:02:24.1]} 13... f6 {[%clk
0:02:38.5]} 14. Be3 {[%clk 0:02:22.8]} 14... Rc8 {[%clk 0:02:28.5]} 15. O-O-O
{[%clk 0:02:08.7]} 15... Be6 {[%clk 0:02:26.3]} 16. Ba6 {[%clk 0:01:57.5]} 16...
Rc7 {[%clk 0:02:10.9]} 17. Kb1 {[%clk 0:01:35.1]} 17... Qc6 {[%clk 0:02:01.6]}
18. Bf1 {[%clk 0:00:52.7]} 18... Qxc2+ {[%clk 0:01:58.1]} 19. Ka1 {[%clk
0:00:53.4]} 19... Bc5 {[%clk 0:01:54.9]} 20. Bb5+ {[%clk 0:00:50.7]} 20... Kf7
{[%clk 0:01:52.2]} 21. Qa4 {[%clk 0:00:32.9]} 21... Bxe3 {[%clk 0:01:44.8]} 22.
fxe3 {[%clk 0:00:33]} 22... Qxg2 {[%clk 0:01:41.2]} 23. Qa6 {[%clk 0:00:12.4]}
23... Rhc8 {[%clk 0:01:36.5]} 24. Rhe1 {[%clk 0:00:10.9]} 24... Qd2 {[%clk
0:01:16.4]} 25. a3 {[%clk 0:00:07.8]} 25... Rc1+ {[%clk 0:01:14.6]} 26. Rxc1
{[%clk 0:00:07.8]} 26... Rxc1+ {[%clk 0:01:14.6]} 27. Rxc1 {[%clk 0:00:08.2]}
27... Qxc1+ {[%clk 0:01:15.5]} 28. Ka2 {[%clk 0:00:08.9]} 28... d4+ {[%clk
0:01:16.4]} 0-1